bitfinex-derivatives/quotes_BNBF0:USTF0_20250221
["timestamp","ask_amount","ask_price","bid_price","bid_amount"]
[1740138822058,2.45414726,661.43,660.53,1.12991461]
[1740138823658,2.45414726,661.42,660.53,1.12991461]
[1740138824254,2.45414726,661.42,660.55,1.12991461]
[1740138825054,2.45414726,661.41,660.55,1.12991461]
[1740138826758,2.45414726,661.41,660.5,0.3028009]
[1740138826759,2.45414726,661.41,660.59,1.12991461]
[1740138827061,1.57917426,661.45,660.59,1.12991461]
[1740138827759,2.45400902,661.44,660.59,1.12991461]
[1740138829260,1.57917426,661.45,660.63,1.12991461]
[1740138831158,2.45395846,661.44,660.74,1.12991461]
[1740138832356,1.57917426,661.45,660.74,1.12991461]
[1740138833561,2.45418496,661.44,660.74,1.12991461]
[1740138835061,2.45418496,661.43,660.74,1.12991461]
[1740138836362,2.45418496,661.42,660.74,1.12991461]
[1740138836562,2.45418496,661.42,660.5,1.65869843]
[1740138836563,2.45418496,661.42,660.72,1.12991461]
[1740138837361,2.45418496,661.41,660.72,1.12991461]
[1740138838766,1.57917426,661.45,660.72,1.12991461]
[1740138839768,1.57917426,661.45,660.64,1.12991461]
[1740138842066,1.57917426,661.45,660.55,1.12991461]
[1740138846473,2.45693524,661.44,660.55,1.12991461]
[1740138848075,2.45693524,661.43,660.64,1.12991461]
[1740138849477,2.45693524,661.42,660.64,1.12991461]
[1740138850479,2.45693524,661.42,660.67,1.12991461]
[1740138851076,2.45693524,661.41,660.67,1.12991461]
[1740138852476,2.45693524,661.4,660.67,1.12991461]
[1740138853175,2.45693524,661.4,660.71,1.12991461]
[1740138854779,1.57917426,661.45,660.71,1.12991461]
[1740138855276,2.46001187,661.44,660.71,1.12991461]
[1740138856878,2.46001187,661.43,660.71,1.12991461]
[1740138857082,2.46001187,661.43,660.77,1.12991461]
[1740138858281,2.46001187,661.42,660.77,1.12991461]
[1740138859280,2.46001187,661.42,660.76,1.12991461]
[1740138860480,1.57917426,661.45,660.76,1.12991461]
[1740138861374,1.57917426,661.45,660.67,1.12991461]
[1740138864182,1.57917426,661.45,660.59,1.12991461]
[1740138866678,1.57917426,661.45,660.6,1.12991461]
[1740138868879,1.57917426,661.45,660.7,1.12991461]
[1740138870581,2.45851932,661.44,660.72,1.12991461]
[1740138871986,2.45851932,661.43,660.72,1.12991461]
[1740138873181,2.45851932,661.42,660.72,1.12991461]
[1740138874088,2.45851932,661.42,660.74,1.12991461]
[1740138875089,2.45851932,661.41,660.74,1.12991461]
[1740138876289,2.45851932,661.4,660.69,1.12991461]
[1740138877896,2.45851932,661.39,660.69,1.12991461]
[1740138878085,2.45851932,661.39,660.68,1.12991461]
[1740138879592,1.57917426,661.45,660.68,1.12991461]
[1740138880091,2.45829445,661.44,660.68,1.12991461]
[1740138880488,2.45829445,661.44,660.6,1.12991461]
[1740138880489,2.45829445,661.44,660.65,1.12991461]
[1740138881386,2.45829445,661.43,660.65,1.12991461]
[1740138882991,2.45829445,661.42,660.65,1.12991461]
[1740138883197,2.45829445,661.42,660.69,1.12991461]
[1740138884696,2.45829445,661.41,660.69,1.12991461]
[1740138885294,2.45829445,661.41,660.7,1.12991461]
[1740138886498,1.57917426,661.45,660.7,1.12991461]
[1740138887599,1.57917426,661.45,660.5,0.3028009]
[1740138887600,1.57917426,661.45,660.69,1.12991461]
[1740138888302,2.45857952,661.44,660.69,1.12991461]
[1740138889800,2.45857952,661.43,660.69,1.12991461]
[1740138890998,2.45857952,661.43,660.64,1.12991461]
[1740138891304,1.57917426,661.45,660.64,1.12991461]
[1740138893306,1.57917426,661.45,660.62,1.12991461]
[1740138893701,2.45878643,661.44,660.62,1.12991461]
[1740138895398,1.57917426,661.45,660.62,1.12991461]
[1740138895399,2.45878643,661.43,660.62,1.12991461]
[1740138895603,2.45878643,661.43,660.6,1.12991461]
[1740138896606,2.45878643,661.42,660.6,1.12991461]
[1740138897705,2.45878643,661.41,660.6,1.12991461]
[1740138898101,2.45878643,661.41,660.7,1.12991461]
[1740138899000,2.45878643,661.4,660.7,1.12991461]
[1740138900302,1.57917426,661.45,660.7,1.12991461]
[1740138900901,1.57917426,661.45,660.72,1.12991461]
[1740138903009,1.57917426,661.45,660.74,1.12991461]
[1740138904812,2.45903777,661.44,660.74,1.12991461]
[1740138905906,2.45903777,661.44,660.65,1.12991461]
[1740138906405,1.57917426,661.45,660.65,1.12991461]
[1740138908413,1.57917426,661.45,660.68,1.12991461]
[1740138909013,2.45903901,661.44,660.68,1.12991461]
[1740138910913,1.57917426,661.45,660.68,1.12991461]
[1740138911716,1.57917426,661.45,660.61,1.12991461]
[1740138915221,2.45937738,661.44,660.6,1.12991461]
[1740138916617,2.45937738,661.44,660.54,1.12991461]
[1740138916820,1.57917426,661.45,660.54,1.12991461]
[1740138922420,1.57917426,661.45,660.57,1.12991461]
[1740138924726,1.57917426,661.45,660.58,0.30276423]
[1740138924927,1.57917426,661.45,660.61,1.12991461]
[1740138927532,1.57917426,661.45,660.58,0.30276423]
[1740138944346,1.57917426,661.45,660.68,1.12991461]
[1740138946447,1.57917426,661.45,660.63,1.12991461]
[1740138948948,1.57917426,661.45,660.65,1.12991461]
[1740138951342,1.57917426,661.45,660.58,0.30276423]
[1740138959656,1.57917426,661.45,660.68,1.12991461]
[1740138961458,3.26513515,661.99,660.68,1.12991461]
[1740138961654,3.56725908,661.98,660.68,1.12991461]
[1740138961855,3.56726364,661.97,660.68,1.12991461]
[1740138962056,3.5672682,661.96,660.68,1.12991461]
[1740138962252,3.56727277,661.95,660.68,1.12991461]
[1740138962457,3.56727733,661.94,660.75,1.12991461]
[1740138962657,3.5672819,661.93,660.75,1.12991461]
[1740138962855,3.56728646,661.92,660.75,1.12991461]
[1740138963055,5.72342468,661.91,660.75,1.12991461]
[1740138963255,3.26513515,661.9,660.75,1.12991461]
[1740138963458,3.26513515,661.89,660.75,1.12991461]
[1740138963652,3.26513515,661.88,660.75,1.12991461]
[1740138963851,3.26513515,661.87,660.75,1.12991461]
[1740138964057,3.26513515,661.86,660.75,1.12991461]
[1740138964252,3.26513515,661.85,660.75,1.12991461]
[1740138964454,3.26513515,661.84,660.7,1.12991461]
[1740138964654,3.26513515,661.83,660.7,1.12991461]
[1740138964855,3.26513515,661.82,660.7,1.12991461]
[1740138965060,3.26513515,661.81,660.7,1.12991461]
[1740138965260,3.26513515,661.8,660.7,1.12991461]
[1740138965461,3.26513515,661.79,660.7,1.12991461]
[1740138965660,3.26513515,661.78,660.7,1.12991461]
[1740138965864,3.26513515,661.77,660.7,1.12991461]
[1740138966064,3.26513515,661.76,660.7,1.12991461]
[1740138966261,3.26513515,661.75,660.7,1.12991461]
[1740138966560,3.26513515,661.74,660.69,1.12991461]
[1740138966762,3.26513515,661.73,660.69,1.12991461]
[1740138966956,2.45828953,661.76,660.69,1.12991461]
[1740138967159,3.26616733,661.75,660.69,1.12991461]
[1740138967360,3.26616733,661.74,660.69,1.12991461]
[1740138967562,3.26616733,661.73,660.69,1.12991461]
[1740138967760,2.45828953,661.74,660.69,1.12991461]
[1740138969364,2.45828953,661.73,660.69,1.12991461]
[1740138969863,2.45828953,661.73,660.65,1.12991461]
[1740138970964,2.45828953,661.72,660.65,1.12991461]
[1740138972760,2.45828953,661.71,660.65,1.12991461]
[1740138973561,0.987,661.83,660.65,1.12991461]
[1740138973761,0.987,661.83,660.7,1.12991461]
[1740138974162,3.26622967,661.82,660.7,1.12991461]
[1740138974367,3.26622967,661.81,660.7,1.12991461]
[1740138974668,3.26622967,661.8,660.7,1.12991461]
[1740138974861,3.26622967,661.79,660.7,1.12991461]
[1740138975064,2.45857049,661.82,660.7,1.12991461]
[1740138975265,3.26628023,661.81,660.7,1.12991461]
[1740138975461,3.26628023,661.8,660.7,1.12991461]
[1740138975664,3.26628023,661.79,660.7,1.12991461]
[1740138975866,3.26628023,661.78,660.7,1.12991461]
[1740138976167,2.45857049,661.79,660.58,0.30276423]
[1740138976168,3.26628023,661.77,660.69,1.12991461]
[1740138976367,3.26628023,661.76,660.69,1.12991461]
[1740138976569,3.26628023,661.75,660.69,1.12991461]
[1740138976766,3.26628023,661.74,660.69,1.12991461]
[1740138976969,3.26628023,661.73,660.69,1.12991461]
[1740138977165,3.26628023,661.72,660.69,1.12991461]
[1740138977467,3.26628023,661.71,660.69,1.12991461]
[1740138977667,3.26628023,661.7,660.69,1.12991461]
[1740138977866,3.26628023,661.69,660.69,1.12991461]
[1740138978065,3.26628023,661.68,660.69,1.12991461]
[1740138978263,3.26628023,661.67,660.69,1.12991461]
[1740138978467,3.26628023,661.66,660.71,1.12991461]
[1740138978662,2.45857049,661.72,660.71,1.12991461]
[1740138978867,3.26688199,661.71,660.71,1.12991461]
[1740138979067,3.26688199,661.7,660.71,1.12991461]
[1740138979267,5.72545248,661.69,660.71,1.12991461]
[1740138979464,2.45857049,661.69,660.71,1.12991461]
[1740138979869,3.26710272,661.68,660.71,1.12991461]
[1740138980067,2.45857049,661.69,660.71,1.12991461]
[1740138980269,3.26710604,661.68,660.71,1.12991461]
[1740138980570,3.26710604,661.67,660.71,1.12991461]
[1740138980766,2.45857049,661.69,660.71,1.12991461]
[1740138980968,5.72597476,661.68,660.71,1.12991461]
[1740138981270,3.26740427,661.67,660.67,1.12991461]
[1740138981471,3.26740427,661.66,660.67,1.12991461]
[1740138981670,2.45857049,661.68,660.67,1.12991461]
[1740138981871,3.26788992,661.67,660.67,1.12991461]
[1740138982071,3.26788992,661.66,660.67,1.12991461]
[1740138982266,2.45857049,661.68,660.67,1.12991461]
[1740138982470,2.45857049,661.65,660.67,1.12991461]
[1740138984073,2.45857049,661.64,660.67,1.12991461]
[1740138984674,2.45857049,661.64,660.68,1.12991461]
[1740138985469,2.45857049,661.63,660.68,1.12991461]
[1740138986874,0.987,661.83,660.68,1.12991461]
[1740138987276,3.26827096,661.82,660.68,1.12991461]
[1740138987575,0.987,661.83,660.72,1.12991461]
[1740138987576,3.26827096,661.81,660.72,1.12991461]
[1740138987777,3.26827096,661.8,660.72,1.12991461]
[1740138987978,3.26827096,661.79,660.72,1.12991461]
[1740138988171,2.46008261,661.82,660.72,1.12991461]
[1740138988373,0.987,661.83,660.72,1.12991461]
[1740138988979,3.26813684,661.82,660.72,1.12991461]
[1740138989170,3.26813684,661.81,660.72,1.12991461]
[1740138989376,3.26813684,661.8,660.72,1.12991461]
[1740138989675,3.26813684,661.79,660.72,1.12991461]
[1740138989875,3.26813684,661.78,660.72,1.12991461]
[1740138990170,3.26813684,661.77,660.72,1.12991461]
[1740138990377,3.26813684,661.76,660.75,1.12991461]
[1740138990571,3.26813684,661.75,660.75,1.12991461]
[1740138990773,3.26813684,661.74,660.75,1.12991461]
[1740138990972,3.26813684,661.73,660.75,1.12991461]
[1740138991171,3.26813684,661.72,660.75,1.12991461]
[1740138991476,3.26813684,661.71,660.75,1.12991461]
[1740138991673,3.26813684,661.7,660.75,1.12991461]
[1740138991873,3.26813684,661.69,660.75,1.12991461]
[1740138992080,3.26813684,661.68,660.75,1.12991461]
[1740138992280,3.26813684,661.67,660.75,1.12991461]
[1740138992479,3.26813684,661.66,660.75,1.12991461]
[1740138992673,3.26813684,661.65,660.75,1.12991461]
[1740138992876,3.26813684,661.64,660.75,1.12991461]
[1740138993074,3.26813684,661.63,660.75,1.12991461]
[1740138993274,3.26813684,661.62,660.75,1.12991461]
[1740138993477,2.45998849,661.67,660.58,0.30276423]
[1740138993478,3.26813684,661.61,660.73,1.12991461]
[1740138993674,3.26813684,661.6,660.73,1.12991461]
[1740138993879,3.26813684,661.59,660.73,1.12991461]
[1740138994079,3.26813684,661.58,660.73,1.12991461]
[1740138994275,3.26813684,661.57,660.73,1.12991461]
[1740138994476,3.26813684,661.56,660.73,1.12991461]
[1740138994777,2.45998849,661.59,660.73,1.12991461]
[1740138994974,3.26820851,661.58,660.73,1.12991461]
[1740138995180,3.26820851,661.57,660.73,1.12991461]
[1740138995376,2.45998849,661.59,660.73,1.12991461]
[1740138995579,2.45998849,661.57,660.73,1.12991461]
[1740138996082,2.45998849,661.57,660.81,1.12991461]
[1740138996979,2.45998849,661.56,660.81,1.12991461]
[1740138998580,2.45998849,661.55,660.81,1.12991461]
[1740138998783,2.45998849,661.55,660.82,1.12991461]
[1740138999478,2.45998849,661.54,660.82,1.12991461]
[1740139000582,2.45998849,661.53,660.82,1.12991461]
[1740139000976,4.03866725,661.53,660.82,1.12991461]
[1740139001679,4.03866725,661.53,660.76,1.12991461]
[1740139002188,2.45998849,661.52,660.76,1.12991461]
[1740139003779,1.57867876,661.53,660.76,1.12991461]
[1740139004383,1.57867876,661.53,660.71,1.12991461]
[1740139006383,1.57867876,661.53,660.58,0.30276423]
[1740139008093,1.57867876,661.53,660.58,1.43267884]
[1740139011494,1.57867876,661.53,660.69,1.12991461]
[1740139013491,2.45961723,661.52,660.69,1.12991461]
[1740139013890,2.45961723,661.52,660.8,1.12991461]
[1740139015398,2.45961723,661.51,660.8,1.12991461]
[1740139017200,2.45961723,661.5,660.8,1.12991461]
[1740139018699,2.45961723,661.5,660.75,1.12991461]
[1740139019199,2.45961723,661.49,660.75,1.12991461]
[1740139020401,2.45961723,661.48,660.75,1.12991461]
[1740139021701,1.57867876,661.53,660.75,1.12991461]
[1740139022201,2.45954987,661.52,660.75,1.12991461]
[1740139023396,2.45954987,661.51,660.74,1.12991461]
[1740139024401,1.57867876,661.53,660.74,1.12991461]
[1740139024602,1.57867876,661.53,660.74,1.43260553]
[1740139025499,2.45954987,661.91,660.74,0.30269092]
[1740139026300,0.30215131,661.92,660.74,0.30269092]
[1740139027503,2.45599445,661.91,660.74,0.30269092]
[1740139028710,2.45599445,661.9,660.74,0.30269092]
[1740139030209,2.45599445,661.89,660.74,0.30269092]
[1740139031710,0.30215131,661.92,660.74,0.30269092]
[1740139034012,0.30215131,661.92,660.78,1.12991461]
[1740139034209,0.30215131,661.92,660.79,0.30266801]
[1740139062439,2.45034297,661.91,660.85,1.12991461]
[1740139063931,0.30215131,661.92,660.85,1.12991461]
[1740139064839,0.30215131,661.92,660.79,0.30266801]
[1740139075343,0.30215131,661.92,660.8,1.12991461]
[1740139079745,2.45539479,661.91,660.8,1.12991461]
[1740139081248,2.45539479,661.9,660.8,1.12991461]
[1740139081444,2.45539479,661.9,660.79,0.30266801]
[1740139081445,2.45539479,661.9,660.84,1.12991461]
[1740139082149,3.26391767,661.89,660.84,1.12991461]
[1740139082350,3.26391767,661.88,660.84,1.12991461]
[1740139082549,3.26391767,661.87,660.84,1.12991461]
[1740139082750,3.26391767,661.86,660.84,1.12991461]
[1740139083045,5.71931246,661.85,660.84,1.12991461]
[1740139083244,3.26391767,661.84,660.84,1.12991461]
[1740139083444,3.26391767,661.83,660.84,1.12991461]
[1740139083646,3.26391767,661.82,660.84,1.12991461]
[1740139083850,2.45539479,661.85,660.84,1.12991461]
[1740139084047,3.26399235,661.84,660.84,1.12991461]
[1740139084249,2.45539479,661.85,660.79,0.30266801]
[1740139084446,5.71871806,661.84,660.79,0.30266801]
[1740139084647,2.45539479,661.84,660.79,0.30266801]
[1740139085752,2.45539479,661.83,660.79,0.30266801]
[1740139087058,2.45539479,661.82,660.79,0.30266801]
[1740139088663,2.45539479,661.81,660.79,0.30266801]
[1740139090062,2.45539479,661.8,660.79,0.30266801]
[1740139091058,3.25906156,661.79,660.79,0.30266801]
[1740139091264,3.25906156,661.78,660.79,0.30266801]
[1740139091463,3.25906156,661.77,660.79,0.30266801]
[1740139091660,3.25906156,661.76,660.79,0.30266801]
[1740139091861,3.25906156,661.75,660.79,0.30266801]
[1740139092058,2.45539479,661.79,660.79,0.30266801]
[1740139092264,3.25828059,661.78,660.79,0.30266801]
[1740139092468,3.25828059,661.77,660.79,0.30266801]
[1740139092763,3.25828059,661.76,660.79,0.30266801]
[1740139092962,2.45539479,661.77,660.79,0.30266801]
[1740139093158,3.25828547,661.76,660.79,0.30266801]
[1740139093363,2.45539479,661.77,660.79,0.30266801]
[1740139093563,3.25789602,661.76,660.79,0.30266801]
[1740139093762,2.45539479,661.77,660.79,0.30266801]
[1740139093963,3.25789601,661.76,660.79,0.30266801]
[1740139094162,3.2575343,661.75,660.79,0.30266801]
[1740139094364,2.45539479,661.76,660.79,0.30266801]
[1740139095462,0.30215131,661.92,660.79,0.30266801]
[1740139095463,2.45539479,661.75,660.79,0.30266801]
[1740139097064,0.30215131,661.92,660.79,0.30266801]
[1740139097668,2.45118052,661.91,660.79,0.30266801]
[1740139099171,2.45118052,661.9,660.79,0.30266801]
[1740139103872,2.75335009,661.88,660.38,0.30285593]
[1740139104072,2.45118052,661.87,660.38,0.30285593]
[1740139104673,0.3021787,661.86,660.38,0.30285593]
[1740139105275,2.45118052,661.85,660.38,0.30285593]
[1740139105468,0.30218783,661.84,660.38,0.30285593]
[1740139106470,2.45118052,661.83,660.38,0.30285593]
[1740139106673,0.30219697,661.82,660.38,0.30285593]
[1740139108773,2.44889528,661.81,660.38,0.30285593]
[1740139109676,0.30219697,661.82,660.38,0.30285593]
[1740139110073,2.44875678,661.81,660.38,0.30285593]
[1740139110774,0.30219697,661.82,660.38,0.30285593]
[1740139114677,2.44828561,661.81,660.38,0.30285593]
[1740139115676,2.44828561,661.81,660.47,1.12991461]
[1740139116471,2.44828561,661.8,660.47,1.12991461]
[1740139117076,1.507,661.79,660.47,1.12991461]
[1740139117672,2.44828561,661.78,660.47,1.12991461]
[1740139118678,2.44828561,661.78,660.38,0.30285593]
[1740139118679,2.44828561,661.78,660.49,1.12991461]
[1740139119078,1.507,661.79,660.49,1.12991461]
[1740139120180,2.44835121,661.78,660.49,1.12991461]
[1740139120582,0.3022198,661.77,660.49,1.12991461]
[1740139121778,0.3022198,661.77,660.38,1.43277054]
[1740139121779,2.44835121,661.76,660.39,1.12991461]
[1740139121980,0.30222893,661.75,660.39,1.12991461]
[1740139123882,2.44820408,661.74,660.39,1.12991461]
[1740139124183,2.44820408,661.74,660.42,1.12991461]
[1740139125181,2.44820408,661.73,660.42,1.12991461]
[1740139125977,2.44820408,661.73,660.49,1.12991461]
[1740139126376,2.44820408,661.72,660.49,1.12991461]
[1740139126883,3.25263212,661.71,660.49,1.12991461]
[1740139127182,2.44820408,661.72,660.49,1.12991461]
[1740139127183,3.25263212,661.7,660.49,1.12991461]
[1740139127378,2.44820408,661.72,660.49,1.12991461]
[1740139127982,2.44820408,661.71,660.49,1.12991461]
[1740139128778,2.44820408,661.71,660.61,1.12991461]
[1740139129383,2.44820408,661.7,660.61,1.12991461]
[1740139130686,2.44820408,661.69,660.61,1.12991461]
[1740139131481,3.2540923,661.68,660.61,1.12991461]
[1740139131685,3.2540923,661.67,660.61,1.12991461]
[1740139131886,2.44820408,661.67,660.39,1.12991461]
[1740139132287,3.25448039,661.66,660.39,1.12991461]
[1740139132483,2.44820408,661.67,660.39,1.12991461]
[1740139132686,3.25448113,661.66,660.39,1.12991461]
[1740139132882,2.44820408,661.67,660.39,1.12991461]
[1740139133082,3.25446651,661.66,660.39,1.12991461]
[1740139133284,2.44820408,661.67,660.39,1.12991461]
[1740139133882,2.44820408,661.66,660.39,1.12991461]
[1740139134989,2.44820408,661.66,660.38,1.43277054]
[1740139135193,2.44820408,661.65,660.38,1.43277054]
[1740139136888,2.44820408,661.64,660.38,1.43277054]
[1740139137289,3.25689345,661.63,660.42,1.12991461]
[1740139137484,3.25689345,661.62,660.42,1.12991461]
[1740139137686,3.25689345,661.61,660.42,1.12991461]
[1740139137892,2.44820408,661.64,660.42,1.12991461]
[1740139138092,3.25775217,661.63,660.42,1.12991461]
[1740139138295,3.25775217,661.62,660.42,1.12991461]
[1740139138593,3.25775217,661.61,660.42,1.12991461]
[1740139138796,2.44820408,661.64,660.42,1.12991461]
[1740139138797,3.25775217,661.6,660.42,1.12991461]
[1740139139090,3.25981952,661.59,660.42,1.12991461]
[1740139139293,2.44820408,661.6,660.5,1.12991461]
[1740139139497,3.25982995,661.59,660.5,1.12991461]
[1740139139698,2.44820408,661.6,660.5,1.12991461]
[1740139139896,3.25982899,661.59,660.5,1.12991461]
[1740139140097,3.25982899,661.58,660.5,1.12991461]
[1740139140296,2.44820408,661.6,660.5,1.12991461]
[1740139140495,2.44820408,661.57,660.5,1.12991461]
[1740139140797,3.2598519,661.56,660.5,1.12991461]
[1740139140997,2.44820408,661.57,660.5,1.12991461]
[1740139141996,2.44820408,661.56,660.5,1.12991461]
[1740139143496,2.44820408,661.55,660.5,1.12991461]
[1740139144093,3.26096865,661.54,660.5,1.12991461]
[1740139144298,3.26096865,661.53,660.5,1.12991461]
[1740139144498,3.26096865,661.52,660.5,1.12991461]
[1740139144796,5.70917273,661.51,660.5,1.12991461]
[1740139144995,3.26096865,661.5,660.5,1.12991461]
[1740139145199,2.44820408,661.51,660.41,1.12991461]
[1740139145200,3.26096865,661.49,660.41,1.12991461]
[1740139145400,3.26096865,661.48,660.41,1.43275678]
[1740139145599,2.44820408,661.51,660.41,1.43275678]
[1740139146600,0.30222893,661.75,660.41,1.43275678]
[1740139146601,2.44820408,661.5,660.41,1.43275678]
[1740139147201,2.44820408,661.5,660.45,1.12991461]
[1740139148104,2.44820408,661.49,660.45,1.12991461]
[1740139149696,2.44820408,661.48,660.45,1.12991461]
[1740139149898,2.44820408,661.48,660.43,1.12991461]
[1740139151198,3.26190034,661.73,660.43,1.12991461]
[1740139151401,3.26190034,661.72,660.43,1.12991461]
[1740139151601,3.26190034,661.71,660.43,1.12991461]
[1740139151802,3.26190034,661.7,660.43,1.12991461]
[1740139152103,2.45560599,661.71,660.43,1.12991461]
[1740139152397,3.26225402,661.7,660.43,1.12991461]
[1740139152703,2.45560599,661.71,660.43,1.12991461]
[1740139153099,2.45560599,661.7,660.43,1.12991461]
[1740139154604,2.45560599,661.7,660.53,1.12991461]
[1740139155499,0.30222893,661.75,660.53,1.12991461]
[1740139155500,2.45560599,661.69,660.53,1.12991461]
[1740139155697,3.26282189,661.68,660.53,1.12991461]
[1740139155897,3.26282189,661.67,660.53,1.12991461]
[1740139156104,3.26282189,661.66,660.53,1.12991461]
[1740139156298,3.26282189,661.65,660.53,1.12991461]
[1740139156505,3.26282189,661.64,660.53,1.12991461]
[1740139156702,3.26282189,661.63,660.53,1.12991461]
[1740139156904,3.26282189,661.62,660.53,1.12991461]
[1740139157106,3.26282189,661.61,660.6,1.12991461]
[1740139157303,3.26282189,661.6,660.6,1.12991461]
[1740139157504,3.26282189,661.59,660.6,1.12991461]
[1740139157707,3.26282189,661.58,660.6,1.12991461]
[1740139157908,2.45560599,661.63,660.6,1.12991461]
[1740139157909,3.26282189,661.57,660.6,1.12991461]
[1740139158209,2.45560599,661.63,660.6,1.12991461]
[1740139158708,2.45560599,661.62,660.6,1.12991461]
[1740139159110,2.45560599,661.62,660.54,1.12991461]
[1740139159905,2.45560599,661.61,660.54,1.12991461]
[1740139161609,2.45560599,661.6,660.54,1.12991461]
[1740139162007,2.45560599,661.6,660.44,0.30282841]
[1740139162309,2.45560599,661.6,660.55,0.30277798]
[1740139162507,0.30222893,661.75,660.55,0.30277798]
[1740139167415,2.45680409,661.74,660.55,0.30277798]
[1740139169120,2.45680409,661.73,660.55,0.30277798]
[1740139170416,2.45680409,661.73,660.55,1.43269259]
[1740139170618,2.45680409,661.72,660.55,1.43269259]
[1740139171816,1.163,661.71,660.55,1.43269259]
[1740139172519,3.61980409,661.71,660.55,1.43269259]
[1740139173216,3.61980409,661.71,660.55,0.30277798]
[1740139173621,2.45680409,661.7,660.55,0.30277798]
[1740139175821,2.45680409,661.69,660.55,0.30277798]
[1740139177621,2.45680409,661.68,660.55,0.30277798]
[1740139178017,2.45680409,661.68,660.55,1.43269259]
[1740139178818,2.45680409,661.67,660.55,1.43269259]
[1740139180322,1.163,661.71,660.55,0.30277798]
[1740139180827,2.45308256,661.7,660.55,0.30277798]
[1740139182126,2.45308256,661.69,660.55,0.30277798]
[1740139182727,2.45308256,661.69,660.64,1.12991461]
[1740139182927,2.45308256,661.69,660.65,0.30273215]
[1740139183128,2.45308256,661.68,660.65,0.30273215]
[1740139183922,2.45308256,661.67,660.65,0.30273215]
[1740139185132,2.45308256,661.67,660.66,1.12991461]
[1740139185426,2.45308256,661.66,660.67,0.30272299]
[1740139186430,2.45308256,661.65,660.67,0.30272299]
[1740139187929,2.45308256,661.64,660.67,0.30272299]
[1740139189430,2.45308256,661.63,660.67,0.30272299]
[1740139190832,1.163,661.71,660.67,0.30272299]
[1740139191232,2.4513084,661.7,660.73,1.12991461]
[1740139192133,2.4513084,661.69,660.73,1.12991461]
[1740139193837,2.4513084,661.68,660.67,0.30272299]
[1740139194934,2.4513084,661.67,660.67,0.30272299]
[1740139196942,1.163,661.71,660.67,0.30272299]
[1740139197545,1.163,661.71,660.66,1.12991461]
[1740139198335,1.163,661.71,660.56,1.12991461]
[1740139198941,3.25695728,662.09,660.56,1.12991461]
[1740139199242,5.70901685,662.08,660.56,1.12991461]
[1740139199441,3.25695728,662.07,660.56,1.12991461]
[1740139199642,3.25695728,662.06,660.56,1.12991461]
[1740139199842,3.25695728,662.05,660.56,1.12991461]
[1740139200043,3.25695728,662.04,660.56,1.12991461]
[1740139200242,3.25695728,662.03,660.56,1.12991461]
[1740139200440,3.25695728,662.02,660.56,1.12991461]
[1740139200641,3.25695728,662.01,660.56,1.12991461]
[1740139200841,5.70901685,662.0,660.59,1.12991461]
[1740139201042,3.25695728,661.99,660.59,1.12991461]
[1740139201242,3.25695728,661.98,660.59,1.12991461]
[1740139201443,3.25695728,661.97,660.59,1.12991461]
[1740139201644,2.45205957,662.0,660.59,1.12991461]
[1740139201645,3.25695728,661.96,660.59,1.12991461]
[1740139201844,3.25695728,661.95,660.59,1.12991461]
[1740139202047,3.25695728,661.94,660.59,1.12991461]
[1740139202344,3.25695728,661.93,660.59,1.12991461]
[1740139202539,2.45205957,661.93,660.59,1.12991461]
[1740139203845,2.45205957,661.93,660.56,1.12991461]
[1740139204043,1.12892266,662.21,660.56,1.12991461]
[1740139205544,2.45205957,662.2,660.56,1.12991461]
[1740139205741,3.25770231,662.19,660.56,1.12991461]
[1740139205944,3.25770231,662.18,660.56,1.12991461]
[1740139206144,3.25770231,662.17,660.56,1.12991461]
[1740139206344,3.25770231,662.16,660.56,1.12991461]
[1740139206646,3.25770231,662.15,660.44,1.12991461]
[1740139206847,3.25770231,662.14,660.44,1.12991461]
[1740139207045,3.25770231,662.13,660.44,1.12991461]
[1740139207245,3.25770231,662.12,660.44,1.12991461]
[1740139207446,3.25770231,662.11,660.44,1.12991461]
[1740139207646,3.25770231,662.1,660.44,1.12991461]
[1740139207847,3.25770231,662.09,660.44,1.12991461]
[1740139208045,3.25770231,662.08,660.44,1.12991461]
[1740139208246,3.25770231,662.07,660.44,1.12991461]
[1740139208446,3.25770231,662.06,660.44,1.12991461]
[1740139208643,3.25770231,662.05,660.44,1.12991461]
[1740139208947,3.25770231,662.04,660.44,1.12991461]
[1740139209147,3.25770231,662.03,660.81,1.12991461]
[1740139209342,3.25770231,662.02,660.81,1.12991461]
[1740139209548,3.25770231,662.01,660.81,1.12991461]
[1740139209748,3.25770231,662.0,660.81,1.12991461]
[1740139209951,3.25770231,662.07,660.81,1.12991461]
[1740139210249,2.45205957,662.06,660.81,1.12991461]
[1740139211448,2.45205957,662.06,660.72,1.12991461]
[1740139212048,2.45205957,662.05,660.72,1.12991461]
[1740139214046,2.45205957,662.04,660.72,1.12991461]
[1740139214253,2.45205957,662.04,660.63,1.12991461]
[1740139215451,2.45205957,662.03,660.63,1.12991461]
[1740139216954,2.45205957,662.02,660.54,1.12991461]
[1740139218455,2.45205957,662.01,660.54,1.12991461]
[1740139219255,2.45205957,662.01,660.61,1.12991461]
[1740139219851,2.45205957,662.0,660.61,1.12991461]
[1740139221055,2.45205957,661.99,660.61,1.12991461]